[Event "WSTCC-50 2020"]
[Site "Prague"]
[Date "2020.03.09"]
[Round "4.40"]
[White "Jhunjhnuwala, Suresh"]
[Black "Burnett, Andrew"]
[Result "0-1"]
[ECO "E90"]
[WhiteElo "1864"]
[BlackElo "2138"]
[Annotator "ChessBase"]
[PlyCount "132"]
[EventDate "2020.03.06"]
[EventType "team-tourn"]
[EventCountry "CZE"]
[SourceTitle "playchess.com"]
[Source "ChessBase"]
[SourceQuality "1"]
[TimeControl "40/5400+30:1800+30"]

1. e4 {[%emt 0:00:00]} g6 {[%emt 0:00:00]} 2. Nf3 {[%emt 0:00:10]} Bg7 {[%emt 0:00:04]} 3. d4 {[%emt 0:00:13]} d6 {[%emt 0:00:08]} 4. c4 {[%emt 0:03:00]} Nf6 {[%emt 0:00:43]} 5. Nc3 {[%emt 0:00:45]} Bg4 {[%emt 0:01:43]} 6. Be2 {[%emt 0:00:42]} O-O {[%emt 0:04:58]} 7. h3 {[%emt 0:00:48]} Bxf3 {[%emt 0:00:17]} 8. Bxf3 {[%emt 0:00:09]} Nfd7 {[%emt 0:03:49]} 9. O-O {[%emt 0:16:32]} e5 {[%emt 0:00:26]} 10. dxe5 {[%emt 0:02:52]} dxe5 {[%emt 0:03:38]} 11. Be2 {[%emt 0:02:49]} Nc6 {[%emt 0:05:35]} 12. Rb1 {[%emt 0:05:16]} a5 {[%emt 0:02:08]} 13. Be3 {[%emt 0:05:43]} Nd4 {[%emt 0:04:11]} 14. f4 {[%emt 0:04:15]} Nxe2+ {[%emt 0:03:30]} 15. Qxe2 {[%emt 0:05:35]} exf4 {[%emt 0:00:19]} 16. Bxf4 {[%emt 0:03:30]} Ne5 {[%emt 0:02:14]} 17. Rbd1 {[%emt 0:00:34]} Qe7 {[%emt 0:00:30]} 18. Nd5 {[%emt 0:00:52]} Qc5+ {[%emt 0:00:26]} 19. Be3 {[%emt 0:00:25]} Qxc4 {[%emt 0:02:48]} 20. Qxc4 {[%emt 0:01:57]} Nxc4 {[%emt 0:00:10]} 21. Bc5 {[%emt 0:01:02]} Rfd8 {[%emt 0:03:59]} 22. b3 {[%emt 0:17:08]} Nb2 {[%emt 0:03:21]} 23. Rb1 {[%emt 0:08:07]} Nd3 {[%emt 0:02:07]} 24. Be7 {[%emt 0:07:54]} Rd7 {[%emt 0:00:57]} 25. Nf6+ {[%emt 0:00:06]} Bxf6 {[%emt 0:00:13]} 26. Bxf6 {[%emt 0:00:06]} Re8 {[%emt 0:03:25]} 27. e5 {[%emt 0:02:56]} Re6 {[%emt 0:04:44]} 28. Rbd1 {[%emt 0:02:27]} Nxe5 {[%emt 0:01:49]} 29. Rxd7 {[%emt 0:02:09]} Nxd7 {[%emt 0:00:09]} 30. Bd8 {[%emt 0:00:07]} Rc6 {[%emt 0:00:34]} 31. Rd1 {[%emt 0:00:09]} Nf8 {[%emt 0:02:23]} 32. Rd2 {[%emt 0:02:02]} Kg7 {[%emt 0:01:16]} 33. Bg5 {[%emt 0:00:50]} Ne6 {[%emt 0:00:51]} 34. Be3 {[%emt 0:00:11]} Kf8 {[%emt 0:04:42]} 35. Bf2 {[%emt 0:00:08]} Rc1+ {[%emt 0:00:47]} 36. Kh2 {[%emt 0:00:02]} Ke7 {[%emt 0:00:22]} 37. Bg3 {[%emt 0:00:58]} f6 {[%emt 0:02:21]} 38. Bf2 {[%emt 0:02:49]} b6 {[%emt 0:01:18]} 39. g4 {[%emt 0:00:12]} Nc5 {[%emt 0:01:41]} 40. Re2+ {[%emt 0:00:00]} Kd7 {[%emt 0:00:00]} 41. Kg2 {[%emt 0:04:45]} Ne6 {[%emt 0:08:32]} 42. Bg3 {[%emt 0:01:56]} Rd1 {[%emt 0:00:44]} 43. Rf2 {[%emt 0:01:23]} Ke7 {[%emt 0:01:43]} 44. Bh4 {[%emt 0:01:06]} g5 {[%emt 0:00:18]} 45. Bg3 {[%emt 0:00:08]} Rd4 {[%emt 0:06:02]} 46. Rc2 {[%emt 0:02:08]} c5 {[%emt 0:00:21]} 47. Re2 {[%emt 0:01:28]} b5 {[%emt 0:01:35]} 48. Bf2 {[%emt 0:00:23]} Rd5 {[%emt 0:00:49]} 49. Be1 {[%emt 0:01:46]} Kd7 {[%emt 0:03:47]} 50. Re3 {[%emt 0:06:59]} Nf4+ {[%emt 0:01:13]} 51. Kg3 {[%emt 0:03:56]} b4 {[%emt 0:00:31]} 52. h4 {[%emt 0:00:27]} h6 {[%emt 0:01:46]} 53. hxg5 {[%emt 0:00:09]} hxg5 {[%emt 0:00:06]} 54. Kf3 {[%emt 0:00:16]} Rd3 {[%emt 0:01:33]} 55. Rxd3+ {[%emt 0:00:39]} Nxd3 {[%emt 0:00:06]} 56. Bd2 {[%emt 0:00:11]} Ke6 {[%emt 0:00:24]} 57. Ke4 {[%emt 0:01:42]} Ne5 {[%emt 0:00:49]} 58. Be3 {[%emt 0:00:07]} c4 {[%emt 0:01:05]} 59. bxc4 {[%emt 0:03:32]} Nxc4 {[%emt 0:00:05]} 60. Bc5 {[%emt 0:02:10]} Ne5 {[%emt 0:00:49]} 61. Bb6 {[%emt 0:00:25]} a4 {[%emt 0:00:52]} 62. Bc5 {[%emt 0:00:45]} b3 {[%emt 0:00:17]} 63. axb3 {[%emt 0:00:15]} axb3 {[%emt 0:00:06]} 64. Bd4 {[%emt 0:00:28]} Nxg4 {[%emt 0:00:18]} 65. Kd3 {[%emt 0:00:26]} Kd5 {[%emt 0:00:32]} 66. Be5 Kxe5 {Kd4+} 0-1

[Event "WSTCC-50 2020"]
[Site "Prague"]
[Date "2020.03.09"]
[Round "4.41"]
[White "Weyrich, Morten"]
[Black "Fritsche, Lutz"]
[Result "0-1"]
[ECO "A25"]
[WhiteElo "2281"]
[BlackElo "2321"]
[Annotator "RC"]
[PlyCount "86"]
[EventDate "2020.03.06"]
[EventType "team-tourn"]
[EventCountry "CZE"]
[SourceTitle "playchess.com"]
[Source "ChessBase"]
[SourceQuality "1"]
[TimeControl "40/5400+30:1800+30"]

1. c4 {[%emt 0:00:00]} g6 {[%emt 0:00:03]} 2. Nc3 {[%emt 0:00:00]} Bg7 {[%emt 0:00:18]} 3. g3 {[%emt 0:00:00]} e5 {[%emt 0:01:18]} 4. Bg2 {[%emt 0:00:10]} Nc6 {[%emt 0:00:08]} 5. e4 {[%emt 0:00:43]} d6 {[%emt 0:00:42]} 6. Nge2 {[%emt 0:00:07]} h5 {[%emt 0:02:01]} 7. h4 {[%emt 0:05:19]} Be6 {[%emt 0:03:27]} 8. d3 {[%emt 0:00:05]} Qd7 {[%emt 0:02:56]} 9. Be3 {[%emt 0:00:50]} Nh6 {[%emt 0:11:01]} 10. f3 {[%emt 0:00:25]} f5 {[%emt 0:00:17]} 11. Nd5 {[%emt 0:01:35]} Ne7 {[%emt 0:05:47]} 12. Qd2 {[%emt 0:03:14]} Nf7 {[%emt 0:06:20]} 13. O-O-O {[%emt 0:11:35]} c6 {[%emt 0:00:46]} 14. Nxe7 {[%emt 0:01:08]} Qxe7 {[%emt 0:00:11]} 15. Kb1 {[%emt 0:02:00]} O-O {[%emt 0:10:45]} 16. f4 {[%emt 0:01:42]} Rad8 {[%emt 0:02:22]} 17. Nc3 {[%emt 0:01:08]} Qc7 {[%emt 0:19:55]} 18. exf5 {[%emt 0:06:47]} Bxf5 {[%emt 0:00:35]} 19. Be4 {[%emt 0:00:07]} exf4 {[%emt 0:03:23]} 20. Bxf4 {[%emt 0:03:22]} Ne5 {[%emt 0:00:46]} 21. Bxf5 {[%emt 0:03:22]} Rxf5 {[%emt 0:00:12]} 22. Qe2 {[%emt 0:02:56]} Qf7 {[%emt 0:12:19]} 23. Rhf1 {[%emt 0:02:57]} Qd7 {[%emt 0:11:41]} 24. Ne4 {[%emt 0:09:05]} Re8 {[%emt 0:02:37]} 25. d4 {[%emt 0:11:08]} Ng4 {[%emt 0:00:34]} 26. Qg2 {[%emt 0:03:36]} d5 {[%emt 0:00:25]} 27. Nc5 {[%emt 0:01:02]} Qf7 {[%emt 0:00:20]} 28. cxd5 {[%emt 0:00:08]} cxd5 {[%emt 0:00:18]} 29. Nb3 {[%emt 0:14:42]} Re4 {[%emt 0:00:16]} 30. Rfe1 {[%emt 0:01:28]} Rfxf4 {[%emt 0:00:27]} 31. gxf4 {[%emt 0:00:15]} Ne3 {[%emt 0:00:07]} 32. Rxe3 {[%emt 0:00:45]} Rxe3 {[%emt 0:00:09]} 33. Rc1 {[%emt 0:09:04]} b6 {[%emt 0:00:15]} 34. Nd2 {[%emt 0:00:54]} Qf5+ {[%emt 0:01:32]} 35. Ka1 {[%emt 0:00:14]} Bxd4 {[%emt 0:00:54]} 36. Nf3 {[%emt 0:00:57]} Bf6 {[%emt 0:00:38]} 37. Ne5 {[%emt 0:00:25]} Bxe5 {[%emt 0:00:48]} 38. Qxd5+ {[%emt 0:00:16]} Kh7 {[%emt 0:00:10]} 39. fxe5 {[%emt 0:00:00]} Qxe5 {[%emt 0:00:00]} 40. Qd7+ {[%emt 0:00:00]} Qe7 {[%emt 0:00:00]} 41. Qc8 {[%emt 0:11:39]} Qxh4 {[%emt 0:04:02]} 42. Rc7+ {[%emt 0:01:30]} Re7 {[%emt 0:00:12]} 43. a3 {[%emt 0:00:54]} Qf6 {[%emt 0:03:18]} 0-1

[Event "WSTCC-50 2020"]
[Site "Prague"]
[Date "2020.03.09"]
[Round "4.45"]
[White "Svanda, Pavel"]
[Black "Denk, Adolf"]
[Result "1/2-1/2"]
[ECO "B50"]
[WhiteElo "2074"]
[BlackElo "2224"]
[Annotator "ChessBase"]
[PlyCount "58"]
[EventDate "2020.03.06"]
[EventType "team-tourn"]
[EventCountry "CZE"]
[SourceTitle "playchess.com"]
[Source "ChessBase"]
[SourceQuality "1"]
[TimeControl "40/5400+30:1800+30"]

1. e4 {[%emt 0:00:00]} c5 {[%emt 0:00:00]} 2. Nf3 {[%emt 0:00:00]} d6 {[%emt 0:00:03]} 3. Bc4 {[%emt 0:00:32]} Nf6 {[%emt 0:00:47]} 4. d3 {[%emt 0:00:10]} e6 {[%emt 0:00:32]} 5. O-O {[%emt 0:00:11]} Be7 {[%emt 0:00:06]} 6. Re1 {[%emt 0:00:39]} Nc6 {[%emt 0:01:23]} 7. c3 {[%emt 0:00:19]} O-O {[%emt 0:02:17]} 8. Bb3 {[%emt 0:00:09]} e5 {[%emt 0:12:52]} 9. Nbd2 {[%emt 0:02:23]} Rb8 {[%emt 0:01:07]} 10. Nf1 {[%emt 0:01:00]} Be6 {[%emt 0:11:09]} 11. Bc2 {[%emt 0:05:25]} Qc7 {[%emt 0:03:47]} 12. Qe2 {[%emt 0:06:52]} b5 {[%emt 0:02:10]} 13. Ng5 {[%emt 0:08:18]} Bg4 {[%emt 0:29:32]} 14. f3 {[%emt 0:00:35]} Bd7 {[%emt 0:00:17]} 15. f4 {[%emt 0:00:31]} exf4 {[%emt 0:00:45]} 16. Bxf4 {[%emt 0:01:21]} Ne5 {[%emt 0:01:07]} 17. Ne3 {[%emt 0:05:39]} h6 {[%emt 0:06:07]} 18. Nf3 {[%emt 0:02:52]} Be6 {[%emt 0:05:53]} 19. h3 {[%emt 0:33:58]} Rfe8 {[%emt 0:01:26]} 20. Bg3 {[%emt 0:00:36]} b4 {[%emt 0:04:31]} 21. Nxe5 {[%emt 0:00:25]} dxe5 {[%emt 0:00:01]} 22. d4 {[%emt 0:00:21]} cxd4 {[%emt 0:02:18]} 23. cxd4 {[%emt 0:00:11]} Bd6 {[%emt 0:00:13]} 24. d5 {[%emt 0:00:29]} Bd7 {[%emt 0:00:08]} 25. Kh1 {[%emt 0:00:56]} Bb5 {[%emt 0:03:09]} 26. Qf3 {[%emt 0:00:57]} Bf8 {[%emt 0:01:35]} 27. Rac1 {[%emt 0:00:18]} Qd7 {[%emt 0:01:00]} 28. Bh4 {[%emt 0:00:45]} Nh7 {[%emt 0:00:18]} 29. Bb1 {[%emt 0:09:53]} Rbc8 1/2-1/2

[Event "WSTCC-50 2020"]
[Site "Prague"]
[Date "2020.03.09"]
[Round "4.46"]
[White "Druckenthaner, Andreas"]
[Black "Miculka, Petr"]
[Result "1-0"]
[ECO "B25"]
[WhiteElo "2277"]
[BlackElo "2040"]
[Annotator "ChessBase"]
[PlyCount "65"]
[EventDate "2020.03.06"]
[EventType "team-tourn"]
[EventCountry "CZE"]
[SourceTitle "playchess.com"]
[Source "ChessBase"]
[SourceQuality "1"]
[TimeControl "40/5400+30:1800+30"]

1. e4 c5 2. Nc3 Nc6 3. g3 g6 4. Bg2 Bg7 5. d3 d6 6. Nh3 e6 7. Be3 Nd4 8. O-O Ne7 9. Qd2 O-O 10. Bh6 b5 11. Bxg7 Kxg7 12. f4 Rb8 13. Ne2 Nxe2+ 14. Qxe2 Qb6 15. g4 f6 16. Kh1 Bb7 17. Rf2 Rbc8 18. Raf1 c4 19. f5 cxd3 20. cxd3 exf5 21. Nf4 Kh8 22. gxf5 g5 23. Ne6 Rg8 24. Qh5 Rg7 25. d4 Nc6 26. Nxg7 Kxg7 27. h4 Qxd4 28. hxg5 Ne5 29. Qh6+ Kg8 30. gxf6 Rc7 31. Bf3 Bxe4 32. Rg2+ Ng6 33. Bxe4 1-0

[Event "WSTCC-50 2020"]
[Site "Prague"]
[Date "2020.03.09"]
[Round "4.47"]
[White "Tesar, Jan"]
[Black "Ernst, Michael"]
[Result "1/2-1/2"]
[ECO "D02"]
[WhiteElo "2008"]
[BlackElo "2155"]
[Annotator "ChessBase"]
[PlyCount "56"]
[EventDate "2020.03.06"]
[EventType "team-tourn"]
[EventCountry "CZE"]
[SourceTitle "playchess.com"]
[Source "ChessBase"]
[SourceQuality "1"]
[TimeControl "40/5400+30:1800+30"]

1. d4 d5 2. Nf3 Bf5 3. g3 Nf6 4. Bg2 h6 5. O-O e6 6. c4 c6 7. b3 Nbd7 8. Bb2 Be7 9. Nbd2 O-O 10. Ne5 a5 11. a3 Ne4 12. Nxe4 Bxe4 13. Bxe4 dxe4 14. Nxd7 Qxd7 15. Qc2 f5 16. Rad1 Bf6 17. e3 Rfd8 18. Rd2 Qe7 19. Rfd1 Kh8 20. Bc3 Qxa3 21. Ra1 Qe7 22. Bxa5 b6 23. Bc3 Rxa1+ 24. Bxa1 Rd7 25. Bc3 Qd8 26. Qd1 Kh7 27. Qa1 Kg8 28. Ra2 Qc7 1/2-1/2

[Event "WSTCC-50 2020"]
[Site "Prague"]
[Date "2020.03.09"]
[Round "4.48"]
[White "Gattermayer, Robert"]
[Black "Bradac, Roman"]
[Result "1/2-1/2"]
[ECO "B26"]
[WhiteElo "1979"]
[BlackElo "1974"]
[Annotator "ChessBase"]
[PlyCount "44"]
[EventDate "2020.03.06"]
[EventType "team-tourn"]
[EventCountry "CZE"]
[SourceTitle "playchess.com"]
[Source "ChessBase"]
[SourceQuality "1"]
[TimeControl "40/5400+30:1800+30"]

1. e4 c5 2. Nc3 {[%emt 0:00:00]} g6 {[%emt 0:00:45]} 3. d3 {[%emt 0:00:00]} Nc6 {[%emt 0:00:43]} 4. Be3 d6 5. g3 {[%emt 0:00:35]} Bg7 {[%emt 0:01:26]} 6. Bg2 {[%emt 0:00:10]} Nf6 {[%emt 0:02:09]} 7. h3 {[%emt 0:00:50]} Nd4 {[%emt 0:04:45]} 8. Nce2 {[%emt 0:01:07]} e5 {[%emt 0:01:46]} 9. c3 {[%emt 0:00:07]} Nc6 {[%emt 0:01:23]} 10. Qd2 {[%emt 0:00:19]} O-O {[%emt 0:01:11]} 11. Bh6 {[%emt 0:00:10]} d5 {[%emt 0:09:08]} 12. Bxg7 {[%emt 0:03:26]} Kxg7 {[%emt 0:00:07]} 13. exd5 {[%emt 0:02:23]} Nxd5 {[%emt 0:00:11]} 14. Nf3 {[%emt 0:00:19]} Re8 {[%emt 0:04:02]} 15. O-O {[%emt 0:00:11]} f6 {[%emt 0:02:20]} 16. Rad1 {[%emt 0:01:19]} Be6 {[%emt 0:03:11]} 17. Rfe1 {[%emt 0:00:43]} Qa5 {[%emt 0:06:01]} 18. Nc1 {[%emt 0:03:03]} Rad8 {[%emt 0:04:04]} 19. Nb3 {[%emt 0:01:32]} Qb6 {[%emt 0:01:08]} 20. Qc2 {[%emt 0:01:42]} Nde7 {[%emt 0:09:00]} 21. Kh1 {[%emt 0:02:12]} Bf5 {[%emt 0:01:55]} 22. Nh4 {[%emt 0:00:28]} Be6 {[%emt 0:05:11]} 1/2-1/2

[Event "WSTCC-50 2020"]
[Site "Prague"]
[Date "2020.03.10"]
[Round "5.23"]
[White "Koganov, Mikhail"]
[Black "Bogumil, Tatiana"]
[Result "1/2-1/2"]
[ECO "A05"]
[WhiteElo "2085"]
[BlackElo "2182"]
[Annotator "ChessBase"]
[PlyCount "54"]
[EventDate "2020.03.06"]
[EventType "team-tourn"]
[EventCountry "CZE"]
[SourceTitle "playchess.com"]
[Source "ChessBase"]
[SourceQuality "1"]
[TimeControl "40/5400+30:1800+30"]

1. Nf3 {[%emt 0:00:02]} Nf6 {[%emt 0:00:00]} 2. c4 {[%emt 0:00:06]} b6 {[%emt 0:01:33]} 3. g3 {[%emt 0:00:39]} Bb7 {[%emt 0:00:07]} 4. Bg2 {[%emt 0:00:07]} g6 {[%emt 0:02:33]} 5. Nc3 {[%emt 0:03:15]} Bg7 {[%emt 0:03:12]} 6. d4 {[%emt 0:02:43]} Ne4 {[%emt 0:03:17]} 7. Nxe4 {[%emt 0:04:32]} Bxe4 {[%emt 0:00:06]} 8. O-O {[%emt 0:00:30]} O-O {[%emt 0:03:38]} 9. Be3 {[%emt 0:17:10]} d6 {[%emt 0:07:50]} 10. Qd2 {[%emt 0:01:20]} Nd7 {[%emt 0:13:05]} 11. Bh6 {[%emt 0:01:27]} c5 {[%emt 0:00:58]} 12. Bxg7 {[%emt 0:01:43]} Kxg7 {[%emt 0:05:34]} 13. Qc3 {[%emt 0:04:47]} Kg8 {[%emt 0:04:26]} 14. Rad1 {[%emt 0:03:55]} cxd4 {[%emt 0:04:41]} 15. Rxd4 {[%emt 0:02:27]} Nf6 {[%emt 0:06:49]} 16. Qe3 {[%emt 0:02:24]} Bxf3 {[%emt 0:04:30]} 17. Bxf3 {[%emt 0:01:36]} Rc8 {[%emt 0:00:30]} 18. Rfd1 {[%emt 0:01:36]} Kg7 {[%emt 0:01:46]} 19. Rh4 {[%emt 0:04:19]} Rh8 {[%emt 0:02:08]} 20. Qh6+ {[%emt 0:03:47]} Kg8 {[%emt 0:02:32]} 21. b3 {[%emt 0:00:36]} Qf8 {[%emt 0:01:16]} 22. Qe3 {[%emt 0:00:26]} h6 {[%emt 0:03:35]} 23. Rhd4 {[%emt 0:05:06]} Kg7 {[%emt 0:01:46]} 24. Bd5 {[%emt 0:01:16]} Rc7 {[%emt 0:00:55]} 25. a4 {[%emt 0:01:03]} Qc8 {[%emt 0:03:18]} 26. Bg2 {[%emt 0:00:58]} Qf5 {[%emt 0:01:14]} 27. Qd3 {[%emt 0:00:51]} Qxd3 1/2-1/2

[Event "WSTCC-50 2020"]
[Site "Prague"]
[Date "2020.03.10"]
[Round "5.24"]
[White "Fatalibekova, Elena"]
[Black "Leverett, Bruce"]
[Result "1/2-1/2"]
[ECO "C41"]
[WhiteElo "2158"]
[BlackElo "2264"]
[Annotator "ChessBase"]
[PlyCount "74"]
[EventDate "2020.03.06"]
[EventType "team-tourn"]
[EventCountry "CZE"]
[SourceTitle "playchess.com"]
[Source "ChessBase"]
[SourceQuality "1"]
[TimeControl "40/5400+30:1800+30"]

1. e4 {[%emt 0:00:00]} d6 {[%emt 0:00:00]} 2. d4 {[%emt 0:00:00]} Nf6 {[%emt 0:00:06]} 3. Nc3 {[%emt 0:00:00]} e5 {[%emt 0:00:10]} 4. Nf3 {[%emt 0:00:29]} Nbd7 {[%emt 0:00:19]} 5. g3 {[%emt 0:01:21]} Be7 {[%emt 0:00:36]} 6. Bg2 {[%emt 0:00:08]} O-O {[%emt 0:01:07]} 7. O-O {[%emt 0:00:07]} c6 {[%emt 0:01:02]} 8. a4 {[%emt 0:01:32]} b6 {[%emt 0:03:49]} 9. b3 {[%emt 0:04:18]} Bb7 {[%emt 0:03:55]} 10. Bb2 {[%emt 0:00:34]} Qc7 {[%emt 0:05:15]} 11. Re1 {[%emt 0:00:26]} Rfe8 {[%emt 0:01:01]} 12. Qd2 {[%emt 0:10:01]} a6 {[%emt 0:07:37]} 13. d5 {[%emt 0:07:20]} cxd5 {[%emt 0:06:41]} 14. Nxd5 {[%emt 0:03:26]} Nxd5 {[%emt 0:00:45]} 15. exd5 {[%emt 0:00:04]} Rac8 {[%emt 0:01:25]} 16. Bh3 {[%emt 0:01:37]} Rb8 {[%emt 0:00:34]} 17. Bf1 {[%emt 0:07:32]} Nf6 {[%emt 0:04:34]} 18. c4 {[%emt 0:00:10]} Bc8 {[%emt 0:02:19]} 19. h3 {[%emt 0:03:43]} Nd7 {[%emt 0:06:42]} 20. b4 {[%emt 0:01:08]} a5 {[%emt 0:04:21]} 21. bxa5 {[%emt 0:02:06]} bxa5 {[%emt 0:00:08]} 22. Bc3 {[%emt 0:00:03]} Nc5 {[%emt 0:04:30]} 23. Rab1 {[%emt 0:09:32]} Bf5 {[%emt 0:04:34]} 24. Rb5 {[%emt 0:06:09]} Ne4 {[%emt 0:13:01]} 25. Qe3 {[%emt 0:03:22]} Nxc3 {[%emt 0:02:18]} 26. Qxc3 {[%emt 0:00:03]} Ra8 {[%emt 0:01:01]} 27. c5 {[%emt 0:01:50]} dxc5 {[%emt 0:01:26]} 28. Qxe5 {[%emt 0:00:03]} Qxe5 {[%emt 0:00:54]} 29. Rxe5 {[%emt 0:00:01]} Bd7 {[%emt 0:01:03]} 30. Rb7 {[%emt 0:00:24]} Bd6 {[%emt 0:01:27]} 31. Rxe8+ {[%emt 0:00:54]} Bxe8 {[%emt 0:00:06]} 32. Bb5 {[%emt 0:07:51]} Bxb5 {[%emt 0:01:03]} 33. Rxb5 {[%emt 0:00:01]} c4 {[%emt 0:00:14]} 34. Rb6 {[%emt 0:00:02]} Bb4 {[%emt 0:00:18]} 35. Rc6 {[%emt 0:00:02]} c3 {[%emt 0:00:27]} 36. Nd4 {[%emt 0:00:16]} Rd8 {[%emt 0:04:25]} 37. Nb5 {[%emt 0:00:14]} Kf8 1/2-1/2

[Event "WSTCC-50 2020"]
[Site "Prague"]
[Date "2020.03.10"]
[Round "5.27"]
[White "Ernst, Michael"]
[Black "Gislason, Gudmundur"]
[Result "0-1"]
[ECO "A48"]
[WhiteElo "2155"]
[BlackElo "2322"]
[Annotator "ChessBase"]
[PlyCount "74"]
[EventDate "2020.03.06"]
[EventType "team-tourn"]
[EventCountry "CZE"]
[SourceTitle "playchess.com"]
[Source "ChessBase"]
[SourceQuality "1"]
[TimeControl "40/5400+30:1800+30"]

1. d4 {[%emt 0:00:00]} Nf6 {[%emt 0:00:00]} 2. Bf4 {[%emt 0:00:00]} g6 {[%emt 0:00:02]} 3. Nf3 {[%emt 0:00:00]} Bg7 {[%emt 0:00:06]} 4. h3 {[%emt 0:00:18]} c5 {[%emt 0:00:06]} 5. e3 {[%emt 0:00:44]} Qb6 {[%emt 0:00:46]} 6. Nc3 {[%emt 0:02:49]} O-O {[%emt 0:07:00]} 7. Rb1 {[%emt 0:06:07]} Qa5 {[%emt 0:10:17]} 8. Qd2 {[%emt 0:04:34]} d6 {[%emt 0:14:17]} 9. Be2 {[%emt 0:00:56]} Nc6 {[%emt 0:02:09]} 10. O-O {[%emt 0:01:53]} a6 {[%emt 0:14:14]} 11. a3 {[%emt 0:05:33]} b5 {[%emt 0:06:06]} 12. Rfd1 {[%emt 0:09:16]} b4 {[%emt 0:02:04]} 13. Na2 {[%emt 0:01:53]} Be6 {[%emt 0:01:14]} 14. c4 {[%emt 0:06:48]} Bf5 {[%emt 0:08:09]} 15. Ra1 {[%emt 0:09:20]} Ne4 {[%emt 0:03:14]} 16. Qc1 {[%emt 0:04:59]} bxa3 {[%emt 0:02:41]} 17. bxa3 {[%emt 0:00:42]} e5 {[%emt 0:02:16]} 18. dxe5 {[%emt 0:01:53]} dxe5 {[%emt 0:00:08]} 19. Bh2 {[%emt 0:01:03]} Rfd8 {[%emt 0:02:36]} 20. Rd5 {[%emt 0:05:40]} Be6 {[%emt 0:02:42]} 21. Rxd8+ {[%emt 0:04:16]} Rxd8 {[%emt 0:00:07]} 22. Qc2 {[%emt 0:08:42]} f5 {[%emt 0:06:26]} 23. Rd1 {[%emt 0:08:50]} Rxd1+ {[%emt 0:01:18]} 24. Qxd1 {[%emt 0:00:15]} Qxa3 {[%emt 0:00:43]} 25. Qc2 {[%emt 0:02:59]} h6 {[%emt 0:03:07]} 26. Nd2 {[%emt 0:01:50]} Nb4 {[%emt 0:01:00]} 27. Nxb4 {[%emt 0:00:04]} cxb4 {[%emt 0:00:55]} 28. Nxe4 {[%emt 0:02:57]} fxe4 {[%emt 0:02:49]} 29. Bg3 {[%emt 0:00:12]} b3 {[%emt 0:03:10]} 30. Qxe4 {[%emt 0:00:03]} b2 {[%emt 0:00:54]} 31. Bd3 {[%emt 0:01:43]} Bf5 {[%emt 0:01:33]} 32. Qd5+ {[%emt 0:00:02]} Kh7 {[%emt 0:00:33]} 33. e4 {[%emt 0:00:41]} Be6 {[%emt 0:00:06]} 34. Qb7 {[%emt 0:00:57]} Qxd3 {[%emt 0:00:39]} 35. Qxb2 {[%emt 0:00:51]} Qxe4 {[%emt 0:00:21]} 36. c5 {[%emt 0:00:32]} Bd5 {[%emt 0:00:14]} 37. f3 {[%emt 0:00:11]} Qd4+ {[%emt 0:00:07]} 0-1

[Event "WSTCC-50 2020"]
[Site "Prague"]
[Date "2020.03.10"]
[Round "5.28"]
[White "Karlsson, Agust S"]
[Black "Kranzl, Peter"]
[Result "1/2-1/2"]
[ECO "A49"]
[WhiteElo "2268"]
[BlackElo "2153"]
[Annotator "ChessBase"]
[PlyCount "81"]
[EventDate "2020.03.06"]
[EventType "team-tourn"]
[EventCountry "CZE"]
[SourceTitle "playchess.com"]
[Source "ChessBase"]
[SourceQuality "1"]
[TimeControl "40/5400+30:1800+30"]

1. d4 {[%emt 0:00:00]} Nf6 {[%emt 0:00:00]} 2. Nf3 {[%emt 0:00:00]} g6 {[%emt 0:00:17]} 3. g3 {[%emt 0:00:00]} Bg7 {[%emt 0:00:12]} 4. Bg2 {[%emt 0:00:00]} O-O {[%emt 0:00:16]} 5. O-O {[%emt 0:00:00]} d6 {[%emt 0:00:30]} 6. b3 {[%emt 0:00:00]} c6 {[%emt 0:03:09]} 7. Bb2 {[%emt 0:01:20]} Qa5 {[%emt 0:07:17]} 8. h3 {[%emt 0:11:58]} Qh5 {[%emt 0:05:50]} 9. g4 {[%emt 0:03:06]} Qa5 {[%emt 0:00:44]} 10. Qe1 {[%emt 0:08:40]} Qxe1 {[%emt 0:03:37]} 11. Rxe1 {[%emt 0:02:09]} h5 {[%emt 0:00:51]} 12. g5 {[%emt 0:01:19]} Ne4 {[%emt 0:02:47]} 13. Nbd2 {[%emt 0:08:32]} Bf5 {[%emt 0:14:00]} 14. Rad1 {[%emt 0:03:34]} Na6 {[%emt 0:06:01]} 15. c3 {[%emt 0:01:26]} Nc7 {[%emt 0:03:14]} 16. Bf1 {[%emt 0:01:34]} d5 {[%emt 0:04:39]} 17. Nxe4 {[%emt 0:01:33]} dxe4 {[%emt 0:00:43]} 18. Nh4 {[%emt 0:07:47]} Be6 {[%emt 0:01:24]} 19. Bg2 {[%emt 0:02:22]} a5 {[%emt 0:00:18]} 20. Ba3 {[%emt 0:05:36]} Rfe8 {[%emt 0:00:37]} 21. c4 {[%emt 0:02:07]} a4 {[%emt 0:02:57]} 22. Bc5 {[%emt 0:00:16]} Ra6 {[%emt 0:00:24]} 23. e3 {[%emt 0:01:29]} b6 {[%emt 0:05:27]} 24. Bb4 {[%emt 0:01:00]} axb3 {[%emt 0:00:36]} 25. axb3 {[%emt 0:00:06]} b5 {[%emt 0:00:13]} 26. Rc1 {[%emt 0:09:33]} bxc4 {[%emt 0:06:59]} 27. bxc4 {[%emt 0:01:08]} Ra4 {[%emt 0:02:46]} 28. Bc5 {[%emt 0:01:34]} Rxc4 {[%emt 0:03:52]} 29. Bxe4 {[%emt 0:01:08]} Rxc1 {[%emt 0:01:12]} 30. Rxc1 {[%emt 0:00:04]} Bd7 {[%emt 0:08:46]} 31. f4 {[%emt 0:00:58]} Nd5 {[%emt 0:00:51]} 32. f5 {[%emt 0:02:41]} gxf5 {[%emt 0:03:44]} 33. Bxf5 {[%emt 0:06:53]} e6 {[%emt 0:01:10]} 34. Be4 {[%emt 0:02:39]} Nxe3 {[%emt 0:00:57]} 35. Bf3 {[%emt 0:05:36]} e5 {[%emt 0:01:06]} 36. g6 {[%emt 0:00:55]} fxg6 {[%emt 0:02:16]} 37. dxe5 {[%emt 0:01:10]} Rxe5 {[%emt 0:00:31]} 38. Nxg6 {[%emt 0:02:57]} Rg5+ {[%emt 0:02:14]} 39. Kf2 {[%emt 0:00:45]} Rxg6 {[%emt 0:00:55]} 40. Bxe3 {[%emt 0:00:00]} Bxh3 {[%emt 0:00:00]} 41. Rxc6 {[%emt 0:00:29]} 1/2-1/2